fUST/lending_fUST_20250904
["ID","MTS","AMOUNT","RATE_DAILY","PERIOD"]
[383471089,1756950639535,-485.00117804,0.00013698,2]
[383471090,1756950639544,-487.21113198,0.00013698,2]
[383471091,1756950639555,-483.46564549,0.00013698,2]
[383471093,1756950639564,-480.0,0.00013698,2]
[383471094,1756950639574,-480.0,0.00013698,2]
[383471095,1756950639583,-484.99145574,0.00013698,2]
[383471096,1756950639593,-483.7357212,0.00013698,2]
[383471097,1756950639603,-480.0,0.00013698,2]
[383471098,1756950639612,-484.10742305,0.00013698,2]
[383471099,1756950639623,-480.32021663,0.00013698,2]
[383471100,1756950639632,-482.54869872,0.00013698,2]
[383471101,1756950639642,-482.79201266,0.00013698,2]
[383471102,1756950639651,-491.78815202,0.00013698,2]
[383471103,1756950639661,-486.4566385,0.00013698,2]
[383471105,1756950639670,-480.0,0.00013698,2]
[383471106,1756950639680,-484.28782861,0.00013698,2]
[383471107,1756950639690,-483.06744069,0.00013698,2]
[383471108,1756950639700,-482.25893465,0.00013698,2]
[383471109,1756950639711,-486.18132707,0.00013698,2]
[383471110,1756950639722,-485.54623985,0.00013698,2]
[383471111,1756950639731,-163.60049803,0.00013698,2]
[383471112,1756950639741,-481.54623038,0.00013698,2]
[383471113,1756950639751,-488.62785363,0.00013698,2]
[383471114,1756950639761,-506.94477664,0.00013698,2]
[383471115,1756950639770,-500.75832586,0.00013698,2]
[383471116,1756950639782,-486.05964523,0.00013698,2]
[383471117,1756950639792,-482.93969673,0.00013698,2]
[383471118,1756950639802,-481.74950066,0.00013698,2]
[383471119,1756950639812,-481.86313016,0.00013698,2]
[383471120,1756950639822,-568.06050534,0.00013698,2]
[383471121,1756950639832,-480.0,0.00013698,2]
[383471122,1756950639843,-487.99357753,0.00013698,2]
[383471123,1756950639852,-400.40224245,0.00013698,2]
[383471124,1756950639862,-485.26625021,0.00013698,2]
[383471125,1756950639871,-482.05700892,0.00013698,2]
[383471126,1756950639881,-481.63672382,0.00013698,2]
[383471127,1756950639890,-555.60365505,0.00013698,2]
[383471128,1756950639899,-481.9026613,0.00013698,2]
[383471129,1756950639909,-487.4845826,0.00013698,2]
[383471130,1756950639918,-511.07659012,0.00013698,2]
[383471131,1756950639928,-180.10504158,0.00013698,2]
[383471132,1756950639937,-485.26854062,0.00013698,2]
[383471133,1756950639946,-487.40726884,0.00013698,2]
[383471134,1756950639956,-506.48964671,0.00013698,2]
[383471135,1756950639965,-480.0,0.00013698,2]
[383471136,1756950639975,-481.70194987,0.00013698,2]
[383471137,1756950639984,-549.04699028,0.00013698,2]
[383471138,1756950639993,-480.0,0.00013698,2]
[383471139,1756950640003,-491.15736958,0.00013698,2]
[383471140,1756950640013,-483.98627919,0.00013698,2]
[383471141,1756950640023,-480.77763394,0.00013698,2]
[383471142,1756950640038,-480.0,0.00013698,2]
[383471143,1756950640048,-484.76608655,0.00013698,2]
[383471144,1756950640057,-481.18344575,0.00013698,2]
[383471145,1756950640067,-499.77083628,0.00013698,2]
[383471146,1756950640077,-616.55440778,0.00013698,2]
[383471147,1756950640087,-510.53779726,0.00013698,2]
[383471148,1756950640096,-481.14893556,0.00013698,2]
[383471149,1756950640105,-483.46014596,0.00013698,2]
[383471150,1756950640115,-482.15940905,0.00013698,2]
[383471151,1756950640125,-446.12599517,0.00013698,2]
[383471152,1756950640135,-492.21279438,0.00013698,2]
[383471153,1756950640145,-480.57860312,0.00013698,2]
[383471154,1756950640155,-480.0,0.00013698,2]
[383471155,1756950640165,-481.17574132,0.00013698,2]
[383471156,1756950640175,-480.90860451,0.00013698,2]
[383471157,1756950640184,-481.27704567,0.00013698,2]
[383471158,1756950640196,-480.87637436,0.00013698,2]
[383471159,1756950640205,-483.72518733,0.00013698,2]
[383471160,1756950640215,-481.11336034,0.00013698,2]
[383471161,1756950640225,-481.40989313,0.00013698,2]
[383471162,1756950640235,-480.69404235,0.00013698,2]
[383471163,1756950640244,-487.15542687,0.00013698,2]
[383471164,1756950640253,-481.58090109,0.00013698,2]
[383471165,1756950640263,-481.59420721,0.00013698,2]
[383471166,1756950640273,-437.60544357,0.00013698,2]
[383471167,1756950640290,-482.90631557,0.00013698,2]
[383471168,1756950640300,-482.16234441,0.00013698,2]
[383471169,1756950640311,-480.0,0.00013698,2]
[383471170,1756950640321,-480.83753717,0.00013698,2]
[383471171,1756950640331,-481.51188764,0.00013698,2]
[383471172,1756950640341,-481.61701115,0.00013698,2]
[383471173,1756950640351,-480.0,0.00013698,2]
[383471174,1756950640361,-482.13582368,0.00013698,2]
[383471175,1756950640371,-483.05135985,0.00013698,2]
[383471176,1756950640381,-484.82049503,0.00013698,2]
[383471177,1756950640390,-964.04,0.00013698,2]
[383471178,1756950640400,-480.0,0.00013698,2]
[383471179,1756950640409,-480.0,0.00013698,2]
[383471180,1756950640419,-160.65272493,0.00013698,2]
[383471181,1756950640428,-480.0,0.00013698,2]
[383471182,1756950640438,-496.44290757,0.00013698,2]
[383471183,1756950640448,-482.31000798,0.00013698,2]
[383471184,1756950640457,-480.0,0.00013698,2]
[383471185,1756950640467,-486.27235671,0.00013698,2]
[383471186,1756950640476,-514.25642925,0.00013698,2]
[383471187,1756950640485,-552.36,0.00013698,2]
[383471188,1756950640495,-483.09089622,0.00013698,2]
[383471189,1756950640505,-482.7895164,0.00013698,2]
[383471190,1756950640514,-487.73288488,0.00013698,2]
[383471191,1756950640524,-330.48607024,0.00013698,2]
[383471192,1756950640539,-486.05750112,0.00013698,2]
[383471193,1756950640548,-484.25296206,0.00013698,2]
[383471194,1756950640558,-480.0,0.00013698,2]
[383471195,1756950640568,-480.91300141,0.00013698,2]
[383471196,1756950640577,-480.0,0.00013698,2]
[383471197,1756950640586,-480.83960798,0.00013698,2]
[383471198,1756950640596,-480.0,0.00013698,2]
[383471199,1756950640605,-298.87230205,0.00013698,2]
[383471200,1756950640617,-482.65764935,0.00013698,2]
[383471201,1756950640627,-480.0,0.00013698,2]
[383471202,1756950640636,-1373.84,0.00013698,2]
[383471203,1756950640645,-480.0,0.00013698,2]
[383471204,1756950640654,-480.0,0.00013698,2]
[383471205,1756950640664,-484.79280601,0.00013698,2]
[383471206,1756950640673,-480.0,0.00013698,2]
[383471207,1756950640682,-480.0,0.00013698,2]
[383471208,1756950640693,-480.0,0.00013698,2]
[383471209,1756950640705,-1327.33,0.00013698,2]
[383471210,1756950640718,-481.28695386,0.00013698,2]
[383471211,1756950640727,-482.97016177,0.00013698,2]
[383471212,1756950640845,-438.54600719,0.00013698,2]
[383471213,1756950640855,-480.0,0.00013698,2]
[383471214,1756950640864,-480.0,0.00013698,2]
[383471215,1756950640874,-484.57082054,0.00013698,2]
[383471216,1756950640884,-927.21,0.00013698,2]
[383471217,1756950640893,-452.50210528,0.00013698,2]
[383471218,1756950640903,-480.9944093,0.00013698,2]
[383471219,1756950640913,-494.48606356,0.00013698,2]
[383471220,1756950640922,-483.56826724,0.00013698,2]
[383471221,1756950640933,-523.8240186,0.00013698,2]
[383471222,1756950640947,-484.01874525,0.00013698,2]
[383471223,1756950640966,-480.0,0.00013698,2]
[383471224,1756950640983,-480.97506941,0.00013698,2]
[383471225,1756950640994,-484.52643837,0.00013698,2]
[383471226,1756950641003,-480.0,0.00013698,2]
[383471227,1756950641013,-480.0,0.00013698,2]
[383471228,1756950641024,-502.26375672,0.00013698,2]
[383471229,1756950641036,-485.63917408,0.00013698,2]
[383471230,1756950641046,-480.0,0.00013698,2]
[383471231,1756950641056,-482.83760743,0.00013698,2]
[383471232,1756950641065,-483.17128234,0.00013698,2]
[383471233,1756950641075,-540.44617819,0.00013698,2]
[383471234,1756950641085,-481.59581995,0.00013698,2]
[383471235,1756950641095,-480.85281871,0.00013698,2]
[383471236,1756950641106,-482.29675203,0.00013698,2]
[383471237,1756950641117,-482.95054744,0.00013698,2]
[383471238,1756950641128,-480.0,0.00013698,2]
[383471239,1756950641139,-481.57912289,0.00013698,2]
[383471240,1756950641150,-296.20829304,0.00013698,2]
[383471241,1756950641159,-480.0,0.00013698,2]
[383471242,1756950641169,-480.0,0.00013698,2]
[383471243,1756950641178,-286.88892942,0.00013698,2]
[383471244,1756950641188,-569.8966481,0.00013698,2]
[383471245,1756950641198,-480.0,0.00013698,2]
[383471246,1756950641207,-480.0,0.00013698,2]
[383471247,1756950641217,-480.68170388,0.00013698,2]
[383471248,1756950641228,-480.0,0.00013698,2]
[383471249,1756950641237,-481.96746801,0.00013698,2]
[383471250,1756950641247,-481.62868839,0.00013698,2]
[383471251,1756950641256,-488.42863507,0.00013698,2]
[383471252,1756950641265,-1109.19,0.00013698,2]
[383471253,1756950641275,-583.31538871,0.00013698,2]
[383471254,1756950641286,-480.0,0.00013698,2]
[383471255,1756950641295,-480.0,0.00013698,2]
[383471256,1756950641304,-480.0,0.00013698,2]
[383471257,1756950641314,-480.0,0.00013698,2]
[383471258,1756950641324,-487.57754472,0.00013698,2]
[383471259,1756950641334,-196.4127428,0.00013698,2]
[383471260,1756950641343,-572.66982766,0.00013698,2]
[383471261,1756950641353,-569.51640365,0.00013698,2]
[383471262,1756950641363,-480.0,0.00013698,2]
[383471263,1756950641373,-480.95323133,0.00013698,2]
[383471264,1756950641382,-480.0,0.00013698,2]
[383471265,1756950641392,-480.0,0.00013698,2]
[383471266,1756950641401,-482.35822572,0.00013698,2]
[383471267,1756950641411,-480.0,0.00013698,2]
[383471268,1756950641420,-480.0,0.00013698,2]
[383471269,1756950641429,-481.65581755,0.00013698,2]
[383471270,1756950641439,-488.55312852,0.00013698,2]
[383471271,1756950641449,-489.86985064,0.00013698,2]
[383471272,1756950641457,-484.26534734,0.00013698,2]
[383471273,1756950641467,-480.73231918,0.00013698,2]
[383471274,1756950641476,-513.40963572,0.00013698,2]
[383471275,1756950641485,-480.0,0.00013698,2]
[383471276,1756950641495,-484.68984074,0.00013698,2]
[383471277,1756950641504,-828.76,0.00013698,2]
[383471278,1756950641514,-485.37177737,0.00013698,2]
[383471279,1756950641523,-481.95129524,0.00013698,2]
[383471280,1756950641534,-537.78277158,0.00013698,2]
[383471281,1756950641544,-485.58665301,0.00013698,2]
[383471282,1756950641553,-480.97747716,0.00013698,2]
[383471283,1756950641563,-503.78995004,0.00013698,2]
[383471284,1756950641572,-482.85819562,0.00013698,2]
[383471285,1756950641582,-481.22458846,0.00013698,2]
[383471286,1756950641592,-489.66247222,0.00013698,2]
[383471287,1756950641600,-500.0,0.00013698,2]
[383471288,1756950641609,-500.0,0.00013698,2]
[383471289,1756950641618,-506.524531,0.00013698,2]
[383471290,1756950641628,-480.0,0.00013698,2]
[383471291,1756950641637,-676.04,0.00013698,2]
[383471292,1756950641647,-488.03795169,0.00013698,2]
[383471293,1756950641655,-270.05199824,0.00013698,2]
[383471294,1756950641664,-507.21016503,0.00013698,2]
[383471295,1756950641673,-151.0,0.00013698,2]
[383471296,1756950641682,-151.18639333,0.00013698,2]
[383471297,1756950641691,-275.52940311,0.00013698,2]
[383471298,1756950641701,-480.0,0.00013698,2]
[383471299,1756950641714,-229.69647836,0.00013698,2]
[383471300,1756950641723,-482.90091575,0.00013698,2]
[383471301,1756950641733,-482.98377092,0.00013698,2]
[383471302,1756950641742,-151.0,0.00013698,2]
[383471303,1756950641752,-187.23618621,0.00013698,2]
[383471304,1756950641761,-151.0,0.00013698,2]
[383471305,1756950641770,-151.08848987,0.00013698,2]
[383471306,1756950641780,-151.0,0.00013698,2]
[383471307,1756950641790,-151.0,0.00013698,2]
[383471308,1756950641800,-242.60420519,0.00013698,2]
[383471309,1756950641809,-223.86140668,0.00013698,2]
[383471310,1756950641818,-486.50230683,0.00013698,2]
[383471311,1756950641828,-500.0,0.00013698,2]
[383471312,1756950641839,-480.0,0.00013698,2]
[383471313,1756950641849,-482.80849664,0.00013698,2]
[383471314,1756950641859,-490.16686368,0.00013698,2]
[383471315,1756950641869,-481.72635641,0.00013698,2]
[383471316,1756950641879,-480.0,0.00013698,2]
[383471317,1756950641888,-480.0,0.00013698,2]
[383471318,1756950641898,-2479.75,0.00013698,2]
[383471319,1756950641907,-480.0,0.00013698,2]
[383471320,1756950641917,-482.37709719,0.00013698,2]
[383471321,1756950641927,-480.0,0.00013698,2]
[383471322,1756950641937,-1868.5,0.00013698,2]
[383471323,1756950641947,-610.17,0.00013698,2]
[383471324,1756950641956,-503.28885888,0.00013698,2]
[383471325,1756950641966,-494.93605195,0.00013698,2]
[383471326,1756950641975,-481.66319009,0.00013698,2]
[383471327,1756950641985,-480.0,0.00013698,2]
[383471328,1756950641994,-483.24615572,0.00013698,2]
[383471329,1756950642004,-235.2046663,0.00013698,2]
[383471330,1756950642014,-239.98756401,0.00013698,2]
[383471331,1756950642023,-485.3965692,0.00013698,2]
[383471332,1756950642034,-260.36097972,0.00013698,2]
[383471333,1756950642044,-482.99241214,0.00013698,2]
[383471334,1756950642053,-483.65301631,0.00013698,2]
[383471335,1756950642064,-605.23,0.00013698,2]
[383471336,1756950642074,-480.0,0.00013698,2]
[383471337,1756950642084,-480.0,0.00013698,2]
[383471338,1756950642095,-480.0,0.00013698,2]
[383471339,1756950642105,-481.78186912,0.00013698,2]
[383471340,1756950642115,-481.14037889,0.00013698,2]
[383471341,1756950642126,-481.26936317,0.00013698,2]
[383471342,1756950642136,-480.0,0.00013698,2]
[383471343,1756950642145,-482.57797156,0.00013698,2]
[383471344,1756950642155,-482.25604087,0.00013698,2]
[383471345,1756950642167,-488.99564334,0.00013698,2]
[383471346,1756950642176,-935.39,0.00013698,2]
[383471347,1756950642186,-480.0,0.00013698,2]
[383471348,1756950642195,-480.0,0.00013698,2]
[383471349,1756950642205,-481.327209,0.00013698,2]
[383471350,1756950642214,-482.74724981,0.00013698,2]
[383471351,1756950642223,-480.0,0.00013698,2]
[383471352,1756950642233,-481.56877535,0.00013698,2]
[383471353,1756950642242,-486.05795682,0.00013698,2]
[383471354,1756950642252,-480.0,0.00013698,2]
[383471355,1756950642261,-480.0,0.00013698,2]
[383471356,1756950642271,-151.0,0.00013698,2]
[383471357,1756950642280,-151.13238704,0.00013698,2]
[383471358,1756950642290,-487.30312577,0.00013698,2]
[383471359,1756950642299,-151.0,0.00013698,2]
[383471360,1756950642310,-151.0,0.00013698,2]
[383471361,1756950642321,-485.58939709,0.00013698,2]
[383471362,1756950642331,-480.95597457,0.00013698,2]
[383471363,1756950642341,-151.0,0.00013698,2]
[383471364,1756950642351,-151.0,0.00013698,2]
[383471365,1756950642361,-480.0,0.00013698,2]
[383471366,1756950642370,-496.72277119,0.00013698,2]
[383471367,1756950642379,-480.0,0.00013698,2]
[383471368,1756950642388,-480.0,0.00013698,2]
[383471369,1756950642398,-480.0,0.00013698,2]
[383471370,1756950642408,-480.0,0.00013698,2]
[383471371,1756950642418,-481.75935862,0.00013698,2]
[383471372,1756950642428,-492.99363136,0.00013698,2]
[383471373,1756950642439,-482.66486813,0.00013698,2]
[383471374,1756950642448,-482.61977161,0.00013698,2]
[383471375,1756950642458,-482.27867248,0.00013698,2]
[383471376,1756950642467,-480.0,0.00013698,2]
[383471377,1756950642477,-482.10874109,0.00013698,2]
[383471378,1756950642487,-510.99537417,0.00013698,2]
[383471379,1756950642497,-500.0,0.00013698,2]
[383471380,1756950642507,-565.432581,0.00013699,2]
[383471381,1756950642516,-825.271575,0.00013699,2]
[383471382,1756950642526,-9618.01213001,0.00013724,2]
[383471383,1756950642536,-786.98435281,0.00013803,2]
[383471385,1756950642545,-155.0,0.00013971,2]
[383471386,1756950642555,-500.0,0.00013972,2]
[383471387,1756950642566,-153.15077533,0.00013972,2]
[383471388,1756950642575,-151.22908862,0.00013972,2]
[383471389,1756950642585,-151.30061107,0.00013972,2]
[383471390,1756950642595,-151.0,0.00013972,2]
[383471391,1756950642605,-500.0,0.00013972,2]
[383471392,1756950642615,-151.0,0.00013972,2]
[383471393,1756950642624,-500.0,0.00013972,2]
[383471394,1756950642634,-500.0,0.00013972,2]
[383471395,1756950642644,-151.0,0.00013972,2]
[383471396,1756950642654,-257.3433041,0.00013972,2]
[383471397,1756950642664,-151.66158976,0.00013972,2]
[383471398,1756950642673,-502.0220556,0.00013972,2]
[383471400,1756950642683,-151.6442027,0.00013972,2]
[383471401,1756950642693,-151.34698561,0.00013972,2]
[383471402,1756950642703,-151.44278543,0.00013972,2]
[383471403,1756950642716,-152.37487777,0.00013972,2]
[383471404,1756950642726,-151.72702327,0.00013972,2]
[383471405,1756950642736,-151.25395533,0.00013972,2]
[383471406,1756950642747,-151.0,0.00013972,2]
[383471407,1756950642758,-151.16292371,0.00013972,2]
[383471408,1756950642768,-151.0,0.00013972,2]
[383471409,1756950642777,-151.0,0.00013972,2]
[383471410,1756950642789,-500.0,0.00013972,2]
[383471411,1756950642799,-151.0,0.00013972,2]
[383471412,1756950642808,-151.0,0.00013972,2]
[383471413,1756950642818,-151.0,0.00013972,2]
[383471414,1756950642827,-223.52154552,0.00013972,2]
[383471415,1756950642837,-480.0,0.00013972,2]
[383471416,1756950642847,-480.0,0.00013972,2]
[383471417,1756950642856,-480.0,0.00013972,2]
[383471418,1756950642866,-480.0,0.00013972,2]
[383471419,1756950642875,-176.42673485,0.00013972,2]
[383471420,1756950642884,-196.97332256,0.00013972,2]
[383471421,1756950642894,-480.0,0.00013972,2]
[383471422,1756950642902,-480.0,0.00013972,2]
[383471423,1756950642910,-485.63002935,0.00013972,2]
[383471424,1756950642919,-480.0,0.00013972,2]
[383471425,1756950642927,-480.0,0.00013972,2]
[383471426,1756950642937,-486.97103251,0.00013972,2]
[383471427,1756950642946,-480.0,0.00013972,2]
[383471428,1756950642955,-480.0,0.00013972,2]
[383471429,1756950642965,-480.0,0.00013972,2]
[383471430,1756950642974,-502.90930669,0.00013972,2]
[383471431,1756950642984,-480.0,0.00013972,2]
[383471432,1756950642993,-480.0,0.00013972,2]
[383471433,1756950643002,-522.06738571,0.00013972,2]
[383471434,1756950643011,-480.0,0.00013972,2]
[383471435,1756950643021,-480.0,0.00013972,2]
[383471436,1756950643030,-521.55138413,0.00013972,2]
[383471437,1756950643040,-178.99703824,0.00013972,2]
[383471438,1756950643049,-546.59279973,0.00013972,2]
[383471439,1756950643058,-480.0,0.00013972,2]
[383471440,1756950643068,-485.30833844,0.00013972,2]
[383471441,1756950643078,-481.80421361,0.00013972,2]
[383471442,1756950643088,-192.88767602,0.00013972,2]
[383471443,1756950643098,-490.72129829,0.00013972,2]
[383471444,1756950643107,-480.0,0.00013972,2]
[383471445,1756950643117,-480.0,0.00013972,2]
[383471446,1756950643127,-486.4805264,0.00013972,2]
[383471447,1756950643136,-485.01809657,0.00013972,2]
[383471448,1756950643146,-488.14197933,0.00013972,2]
[383471449,1756950643156,-489.80530334,0.00013972,2]
[383471450,1756950643166,-483.15348872,0.00013972,2]
[383471451,1756950643176,-964.04,0.00013972,2]
[383471452,1756950643187,-214.15459722,0.00013972,2]
[383471453,1756950643196,-445.82257111,0.00013972,2]
[383471455,1756950643206,-480.0,0.00013972,2]
[383471456,1756950643215,-587.49313863,0.00013972,2]
[383471457,1756950643225,-552.36,0.00013972,2]
[383471458,1756950643234,-480.0,0.00013972,2]
[383471459,1756950643243,-483.22506291,0.00013972,2]
[383471460,1756950643253,-627.13916841,0.00013972,2]
[383471461,1756950643262,-488.11085238,0.00013972,2]
[383471463,1756950643271,-1373.84,0.00013972,2]
[383471464,1756950643281,-483.92353807,0.00013972,2]
[383471465,1756950643291,-482.9082896,0.00013972,2]
[383471466,1756950643300,-490.44179923,0.00013972,2]
[383471467,1756950643310,-480.0,0.00013972,2]
[383471468,1756950643320,-358.4451223,0.00013972,2]
[383471469,1756950643330,-1327.33,0.00013972,2]
[383471470,1756950643341,-482.21006931,0.00013972,2]
[383471471,1756950643351,-490.47137558,0.00013972,2]
[383471472,1756950643361,-927.21,0.00013972,2]
[383471473,1756950643371,-482.33025971,0.00013972,2]
[383471474,1756950643381,-519.02585037,0.00013972,2]
[383471475,1756950643390,-481.10671723,0.00013972,2]
[383471476,1756950643400,-351.31932404,0.00013972,2]
[383471477,1756950643513,-596.39136459,0.00013972,2]
[383471478,1756950643524,-481.58264077,0.00013972,2]
[383471479,1756950643534,-484.1540837,0.00013972,2]
[383471480,1756950643543,-481.12804614,0.00013972,2]
[383471481,1756950643553,-481.5340608,0.00013972,2]
[383471482,1756950643563,-480.0,0.00013972,2]
[383471483,1756950643573,-1109.19,0.00013972,2]
[383471484,1756950643583,-490.95637056,0.00013972,2]
[383471485,1756950643592,-480.0,0.00013972,2]
[383471486,1756950643602,-497.01822666,0.00013972,2]
[383471487,1756950643611,-483.44820281,0.00013972,2]
[383471488,1756950643621,-480.40041886,0.00013972,2]
[383471489,1756950643631,-480.0,0.00013972,2]
[383471490,1756950643640,-481.62680005,0.00013972,2]
[383471491,1756950643650,-480.0,0.00013972,2]
[383471492,1756950643660,-334.39223782,0.00013972,2]
[383471493,1756950643669,-483.91504255,0.00013972,2]
[383471494,1756950643679,-828.76,0.00013972,2]
[383471495,1756950643689,-480.0,0.00013972,2]
[383471496,1756950643698,-676.04,0.00013972,2]
[383471497,1756950643711,-311.26855454,0.00013972,2]
[383471498,1756950643721,-480.0,0.00013972,2]
[383471499,1756950643731,-480.0,0.00013972,2]
[383471500,1756950643740,-364.88127723,0.00013972,2]
[383471501,1756950643750,-2479.75,0.00013972,2]
[383471502,1756950643760,-523.65778618,0.00013972,2]
[383471503,1756950643769,-480.0,0.00013972,2]
[383471504,1756950643778,-1868.5,0.00013972,2]
[383471505,1756950643788,-610.17,0.00013972,2]
[383471506,1756950643798,-488.21811815,0.00013972,2]
[383471507,1756950643807,-605.23,0.00013972,2]
[383471508,1756950643816,-480.0,0.00013972,2]
[383471509,1756950643825,-481.79063773,0.00013972,2]
[383471510,1756950643835,-485.43107364,0.00013972,2]
[383471511,1756950643845,-482.20746014,0.00013972,2]
[383471512,1756950643855,-935.39,0.00013972,2]
[383471513,1756950643864,-481.82708454,0.00013972,2]
[383471514,1756950643874,-482.7744769,0.00013972,2]
[383471515,1756950643883,-480.0,0.00013972,2]
[383471516,1756950643893,-480.0,0.00013972,2]
[383471517,1756950643902,-483.51452311,0.00013972,2]
[383471518,1756950643912,-185.13441732,0.00013972,2]
[383471519,1756950643921,-482.05078182,0.00013972,2]
[383471520,1756950643930,-480.0,0.00013972,2]
[383471521,1756950643940,-480.0,0.00013972,2]
[383471522,1756950643949,-480.0,0.00013972,2]
[383471523,1756950643958,-500.0,0.00013972,2]
[383471524,1756950643968,-501.38012518,0.00013973,2]
[383471525,1756950643978,-501.27247614,0.00013973,2]
[383471526,1756950643989,-500.0,0.00013973,2]
[383471527,1756950643999,-501.06226976,0.00013973,2]
[383471528,1756950644009,-500.0,0.00013973,2]
[383471529,1756950644020,-246.26132631,0.00013973,2]
[383471530,1756950644032,-501.94307181,0.00013973,2]
[383471531,1756950644041,-500.0,0.00013973,2]
[383471532,1756950644051,-624.17812147,0.00013973,2]
[383471533,1756950644060,-500.0,0.00013973,2]
[383471534,1756950644070,-500.0,0.00013973,2]
[383471535,1756950644079,-500.0,0.00013973,2]
[383471536,1756950644089,-501.1281327,0.00013973,2]
[383471537,1756950644099,-292.31718522,0.00013973,2]
[383471538,1756950644108,-500.95843424,0.00013973,2]
[383471539,1756950644118,-500.0,0.00013973,2]
[383471540,1756950644128,-500.58390391,0.00013973,2]
[383471541,1756950644137,-500.8973808,0.00013973,2]
[383471542,1756950644148,-500.87498815,0.00013973,2]
[383471543,1756950644157,-500.70397865,0.00013973,2]
[383471544,1756950644167,-100000.0,0.0001399,2]
[383471545,1756950644177,-151.0,0.0001399,2]
[383471546,1756950644186,-151.0,0.0001399,2]
[383471547,1756950644196,-151.0,0.0001399,2]
[383471548,1756950644206,-151.0,0.0001399,2]
[383471549,1756950644216,-156.783332,0.0001399,2]
[383471550,1756950644225,-151.0,0.0001399,2]
[383471551,1756950644235,-151.0,0.0001399,2]
[383471552,1756950644245,-151.0,0.0001399,2]
[383471553,1756950644254,-151.0,0.0001399,2]
[383471554,1756950644264,-153.298722,0.0001399,2]
[383471555,1756950644274,-151.834064,0.0001399,2]
[383471556,1756950644284,-151.394411,0.0001399,2]
[383471557,1756950644293,-151.886815,0.0001399,2]
[383471558,1756950644304,-151.0,0.0001399,2]
[383471559,1756950644314,-152.082744,0.0001399,2]
[383471560,1756950644324,-151.0,0.0001399,2]
[383471561,1756950644334,-164.763631,0.0001399,2]
[383471562,1756950644344,-152.064801,0.0001399,2]
[383471563,1756950644353,-151.0,0.0001399,2]
[383471564,1756950644363,-151.142064,0.0001399,2]
[383471565,1756950644372,-152.119043,0.0001399,2]
[383471566,1756950644382,-151.0,0.0001399,2]
[383471567,1756950644391,-151.0,0.0001399,2]
[383471568,1756950644401,-151.0,0.0001399,2]
[383471569,1756950644411,-151.0,0.0001399,2]
[383471570,1756950644420,-221.989364,0.0001399,2]
[383471571,1756950644430,-153.112264,0.0001399,2]
[383471572,1756950644440,-151.0,0.0001399,2]
[383471573,1756950644450,-151.0,0.0001399,2]
[383471574,1756950644459,-151.0,0.0001399,2]
[383471575,1756950644468,-151.559598,0.0001399,2]
[383471576,1756950644478,-151.0,0.0001399,2]
[383471577,1756950644487,-371.013586,0.0001399,2]
[383471578,1756950644497,-371.013586,0.0001399,2]
[383471579,1756950644507,-371.013586,0.0001399,2]
[383471580,1756950644516,-371.013586,0.0001399,2]
[383471581,1756950644526,-151.0,0.0001399,2]
[383471582,1756950644536,-287.684994,0.0001399,2]
[383471583,1756950644545,-151.0,0.0001399,2]
[383471584,1756950644555,-151.229089,0.0001399,2]
[383471585,1756950644565,-521.434516,0.0001399,2]
[383471586,1756950644575,-521.434516,0.0001399,2]
[383471587,1756950644586,-521.434516,0.0001399,2]
[383471588,1756950644597,-521.434516,0.0001399,2]
[383471589,1756950644607,-151.0,0.0001399,2]
[383471590,1756950644617,-151.0,0.0001399,2]
[383471591,1756950644626,-530.32150586,0.00014083,2]
[383471592,1756950644636,-232.90165665,0.00014083,2]
[383471593,1756950644646,-160.0,0.00014083,2]
[383471594,1756950644655,-160.0,0.00014083,2]